Cogmind - Beta 13 @@@ ROGUE MODE // 2024.04.09 @ 19:13:10 Player: Allan Result: Self-destructed Performance ------------- Evolutions (1) 500 Regions Visited (2) 400 Robots Destroyed (41) 205 Value Destroyed (1149) 1149 Prototype IDs (0) 0 Alien Tech Used (0) 0 Bonus (70) 70 TOTAL SCORE: 2324 Bonus ------- High Alert Combat Kills 70 Cogmind --------- Core Integrity 105/400 Matter 249/300 Energy 19/100 System Corruption 0% Temperature Cool (15) Movement Core (200) Ox3 Location -9/Materials Parts ------- > --- POWER (1) -------- (None) > --- PROPULSION (4) --- (None) > --- UTILITY (2) ------ Small Storage Unit Signal Interpreter > --- WEAPON (2) ------- EM Shotgun EM Shotgun > --- INVENTORY (8) ---- VTOL Module Heat Sink Sensor Array Signal Interpreter EM Shotgun Improved EM Shotgun Grenade Launcher Peak State ------------ > --- POWER ------------ Light Ion Engine > --- PROPULSION ------- Compact Wheel Compact Wheel Compact Wheel Compact Wheel > --- UTILITY ---------- Small Storage Unit Sensor Array > --- WEAPON ----------- Light Cannon Light Cannon > --- INVENTORY -------- Light Ion Engine Heat Sink Signal Interpreter Light Cannon Light Cannon Grenade Launcher [Rating: 9] Favorites ----------- Power Light Ion Engine Engine Light Ion Engine Propulsion Compact Wheel Wheel Compact Wheel Utility Small Storage Unit Device Sensor Array Storage Small Storage Unit Processor Signal Interpreter Weapon Light Cannon Energy Gun EM Shotgun Ballistic Gun Assault Rifle Ballistic Cannon Light Cannon Launcher Grenade Launcher Build | -11 -10 -9 ------- Run | Yrd Mat Mat Slots Evolved 2 | . . 2 Power . | . . . Propulsion 2 | . . 2 Utility . | . . . Weapon . | . . . Parts Attached 23 | 6 5 12 Power 2 | 1 . 1 Engine 2 | 1 . 1 Core . | . . . Reactor . | . . . Propulsion 4 | 2 . 2 Treads . | . . . Leg . | . . . Wheel 4 | 2 . 2 Hover . | . . . Flight . | . . . Utility 3 | 1 1 1 Device 1 | . 1 . Storage 1 | 1 . . Processor 1 | . . 1 Hackware . | . . . Protection . | . . . Artifact . | . . . Weapon 14 | 2 4 8 Energy Gun 5 | 1 1 3 Energy Cannon . | . . . Ballistic Gun 1 | 1 . . Ballistic Cannon 5 | . 2 3 Launcher 3 | . 1 2 Special Weapon . | . . . Impact Weapon . | . . . Slashing Weapon . | . . . Piercing Weapon . | . . . Special Melee Weapon . | . . . Unidentified Prototypes . | . . . Parts Lost 9 | . 1 8 Power 2 | . . 2 Propulsion 4 | . . 4 Utility . | . . . Weapon 3 | . 1 2 Highest Loss Streak 3 | . 1 3 To Critical Strikes . | . . . Average Slot Usage (%) 76 | . 91 67 Engine 9 | . 14 7 Wheel 20 | . 28 16 Device 5 | . 6 4 Storage 12 | . 14 11 Processor 3 | . . 6 Energy Gun 7 | . 11 5 Ballistic Gun 3 | . 10 . Ballistic Cannon 12 | . 6 15 Naked Turns . | . . . Heaviest Build 16 | 12 15 16 Greatest Support 64 | 32 32 64 Greatest Overweight (x) 3 | . . 3 Average Overweight (x) . | . . . Largest Inventory Capacity 8 | 8 8 8 Average Capacity 7 | 7 8 8 Most Carried 8 | 4 8 8 Average Carried 6 | 2 6 6 Final Capacity 8 | 8 8 8 Final Carried 8 | 4 8 7 Class Distribution -------------------- 100% | Mutant Dominant Class ---------------- Mutant | -10/Materials Mutant | -9/Materials Resources | -11 -10 -9 ----------- Run | Yrd Mat Mat Matter Collected 951 | 220 170 561 Remotely . | . . . Salvage Created 1136 | . 311 825 Parts 75 | . 27 48 Haulers Intercepted 2 | . 1 1 Recyclers Shooed 1 | . . 1 Parts Field Recycled . | . . . Retrieved Matter . | . . . Parts Self-Destructed . | . . . Prevented . | . . . Kills | -11 -10 -9 ------- Run | Yrd Mat Mat Combat Hostiles Destroyed 29 | . 8 21 Guns 5 | . 4 1 Cannons 16 | . 1 15 AOE 8 | . 3 5 Classes Destroyed 9 | . 4 5 Worker 1 | . . 1 Tunneler 1 | . . 1 Hauler 2 | . 1 1 Recycler 1 | . . 1 Watcher 7 | . 3 4 Swarmer 3 | . 3 . Grunt 21 | . 5 16 Brawler 1 | . . 1 Sentry 4 | . . 4 Best Kill Streak 14 | . 5 14 Combat Bots Only 10 | . 4 10 Max Kills in Single Turn 2 | . 2 2 Gunslinging . | . . . Exploded 2 | . 2 1 Melee . | . . . Uniques/NPCs Destroyed . | . . . Combat | -11 -10 -9 -------- Run | Yrd Mat Mat Hostile Shots Fired 158 | . 52 106 Missed 44 | . 14 30 Damage Taken 1519 | . 397 1122 Core 450 | . 155 295 Absorbed by Shields . | . . . Core Remaining (%) 69 | 100 38 . Volleys Fired 96 | . 25 71 Largest 2 | . 2 2 Hottest 90 | . 70 90 Shots Fired 182 | . 48 134 Gun 54 | . 38 16 Cannon 120 | . 8 112 Launcher 8 | . 2 6 Special . | . . . Kinetic 139 | . 27 112 Thermal . | . . . Explosive 8 | . 2 6 Electromagnetic 35 | . 19 16 Robot Hit Streak 11 | . 5 11 Robot Miss Streak 5 | . 3 5 Penetration Max . | . . . Secondary Targets 1 | . 1 . Max Gunslinging Chain 1 | . 1 . Shots Hit Robots 105 | . 23 82 Core Hits 57 | . 14 43 Critical Kills . | . . . Critical Parts Destroyed . | . . . Critical Strikes 2 | . . 2 Blast 2 | . . 2 Melee Attacks . | . . . Impact . | . . . Slashing . | . . . Piercing . | . . . Sneak Attacks . | . . . Combat Hostiles . | . . . Follow-up Attacks . | . . . Damage Inflicted 2484 | . 528 1956 Guns 440 | . 260 180 Cannons 1370 | . 109 1261 Explosions 674 | . 159 515 Melee . | . . . Ramming . | . . . Kinetic 1481 | . 220 1261 Thermal 118 | . . 118 Explosive 556 | . 159 397 Electromagnetic 329 | . 149 180 Impact . | . . . Slashing . | . . . Piercing . | . . . Highest Corruption . | . . . Average Corruption . | . . . Corruption Purged . | . . . Corruption Blocked . | . . . Overload Shots . | . . . Overflow Damage 28 | . . 28 Projectiles 2 | . . 2 Explosions 26 | . . 26 Melee . | . . . Knockbacks 11 | . 1 10 Impact . | . . . Kinetic 11 | . 1 10 Secondary . | . . . Self-Inflicted Damage 97 | . . 97 Shots 4 | . . 4 Rammed 1 | . 1 . Targets Rammed 1 | . 1 . Kicked . | . . . Crushed . | . . . Highest Temperature 149 | . 81 149 Average Temperature 37 | . 25 41 Received Heat Transfer 654 | . 156 498 Siege Activations . | . . . Robots Corrupted . | . . . Combat Hostiles . | . . . Parts Fried 1 | . 1 . Impact Corruptions . | . . . Robots Melted . | . . . Combat Hostiles . | . . . Parts Melted . | . . . Heat Transferred 150 | . . 150 Parts Sabotaged . | . . . Parts Stolen . | . . . Parts Stripped . | . . . Power Chain Reactions 1 | . . 1 Alert | -11 -10 -9 ------- Run | Yrd Mat Mat Peak Influence 603 | . 278 603 Initial 64 | . . 64 Average 247 | . 130 334 Maximum Alert Level 2 | . 1 2 Low Security (%) 48 | 100 78 26 Level 1 29 | . 21 36 Level 2 22 | . . 37 Level 3 . | . . . Level 4 . | . . . Level 5 . | . . . High Security . | . . . Max Security . | . . . Squads Dispatched 4 | . 3 1 Investigation 2 | . 2 . Extermination . | . . . Reinforcement 2 | . 1 1 Assault . | . . . Garrison . | . . . Intercept . | . . . Searches Triggered . | . . . Construction Impeded 1 | . . 1 Haulers Reinforced . | . . . Active Scanning Responses . | . . . Cargo Convoy Interrupts . | . . . Stealth | -11 -10 -9 --------- Run | Yrd Mat Mat Distress Signals 5 | . 1 4 Communications Jammed . | . . . Distress Signals . | . . . Times Spotted 48 | . 15 33 Peak Tracking Total 7 | . 5 7 Tactical Retreats 1 | . . 1 Traps | -11 -10 -9 ------- Run | Yrd Mat Mat Traps Triggered 1 | . 1 . Indirectly . | . . . Trap Hack Attempts . | . . . Triggered . | . . . Disarmed . | . . . Reprogrammed . | . . . Reused . | . . . Traps Extracted . | . . . Installed . | . . . Triggered . | . . . Machines | -11 -10 -9 ---------- Run | Yrd Mat Mat Machines Disabled 2 | . . 2 Max in Single Turn 1 | . . 1 Machines Repaired . | . . . Machines Dismantled . | . . . Machines Sabotaged . | . . . Overloaded Fab Kills . | . . . Hacking | -11 -10 -9 --------- Run | Yrd Mat Mat Machines Accessed 5 | . 4 1 Terminals 4 | . 3 1 Fabricators . | . . . Repair Stations . | . . . Recycling Units 1 | . 1 . Scanalyzers . | . . . Garrison Access . | . . . Total Hacks 9 | . 8 1 Successful 2 | . 2 . Failed 7 | . 6 1 Catastrophic 4 | . 3 1 Database Lockouts . | . . . Manual 3 | . 2 1 Terminals 8 | . 7 1 Fabricators . | . . . Repair Stations . | . . . Recycling Units 1 | . 1 . Scanalyzers . | . . . Garrison Access . | . . . Terminal Hacks 1 | . 1 . Hauler Manifests 1 | . 1 . Fabricator Hacks . | . . . Repair Station Hacks . | . . . Recycling Unit Hacks 1 | . 1 . Report Inventory 1 | . 1 . Scanalyzer . | . . . Garrison Access Hacks . | . . . Unauthorized Hacks . | . . . Terminals . | . . . Fabricators . | . . . Repair Stations . | . . . Recycling Units . | . . . Scanalyzers . | . . . Garrison Access . | . . . Data Cores Recovered . | . . . Used . | . . . Hacking Detections 5 | . 4 1 Full Trace Events 1 | . 1 . Feedback Events . | . . . Feedback Blocked . | . . . Robot Schematics Acquired . | . . . Robots Built . | . . . Authchips . | . . . Time . | . . . Total Robot Build Rating . | . . . Part Schematics Acquired . | . . . Parts Built . | . . . Authchips . | . . . Time . | . . . Total Part Build Rating . | . . . Parts Repaired . | . . . Time . | . . . Parts Recycled . | . . . Recycled Matter . | . . . Retrieved Matter . | . . . Retrieved Components . | . . . Parts Scanalyzed . | . . . Part Schematics Acquired . | . . . Parts Damaged . | . . . Bothacking | -11 -10 -9 ------------ Run | Yrd Mat Mat Used RIF Installer . | . . . Robots Hacked . | . . . Non-combat . | . . . Combat . | . . . Robot Hacks Applied . | . . . Relay Couplers Released . | . . . Fabnet Peak Effective % . | . . . Robots Rewired . | . . . Allies Hacked . | . . . Hacks Repelled . | . . . Allies | -11 -10 -9 -------- Run | Yrd Mat Mat Total Allies . | . . . Largest Group . | . . . Highest-Rated Group . | . . . Highest-Rated Ally . | . . . Total Orders . | . . . Ally Attacks . | . . . Total Damage . | . . . Kills . | . . . Allies Corrupted . | . . . Allies Melted . | . . . Intel | -11 -10 -9 ------- Run | Yrd Mat Mat Robot Analysis Total . | . . . Derelict Logs Recovered . | . . . Drone Launches . | . . . Drone Recoveries . | . . . Exploration | -11 -10 -9 ------------- Run | Yrd Mat Mat Turns Passed 1298 | 71 439 788 Spaces Moved 823 | 58 316 449 Core 101 | 5 . 96 Treads . | . . . Legs . | . . . Wheels 722 | 53 316 353 Hover . | . . . Flight . | . . . Fastest Speed 50 | 50 100 100 Average Speed 110 | 95 100 119 Slowest Speed 200 | 100 100 200 Overloaded Moves . | . . . Propulsion Burnouts . | . . . Robots Hopped . | . . . Cave-ins Triggered . | . . . Exploration Rate (%) 33 | 4 53 42 Regions Visited 2 Branch Regions . Pre-discovered Areas . | . . . Known Exits Taken . | . . . Unknown Exits Taken 2 | 1 1 . Scrap Searched . | . . . Spaces Dug . | . . . Terrain Destroyed 41 | . 10 31 Melee . | . . . Projectile 3 | . . 3 AOE 38 | . 10 28 Terrain Rammed . | . . . Walls Destroyed . | . . . Machines Disabled . | . . . Actions | -11 -10 -9 --------- Run | Yrd Mat Mat Total 1032 | 73 392 567 Wait 46 | . 30 16 Move 821 | 57 315 449 Hop . | . . . Pick Up 32 | 10 11 11 Fast Attach . | . . . Attach 14 | 6 2 6 Detach 1 | . . 1 Swap 9 | . 3 6 Drop 12 | . 5 7 Fire 96 | . 25 71 Melee . | . . . Ram 1 | . 1 . Kick . | . . . Crush . | . . . Escape Stasis . | . . . Rewire . | . . . Trap . | . . . Miscellaneous . | . . . Route ------- -11/Scrapyard -10/Materials (discovered 2 exits: *Mat / [*Min]) -9/Materials (discovered 1 exit: *Min) History --------- Turn | Location | Event 11 | -11/Scrapyard | Discovered new exit (range 16) 72 | -11/Scrapyard | Entered Materials 294 | -10/Materials | Discovered new exit (range 7) 301 | -10/Materials | Build established: Mutant 501 | -10/Materials | Core integrity fell below 50% 508 | -10/Materials | Discovered new exit (range 4) 511 | -10/Materials | Entered another Materials area 511 | -9/Materials | Evolved 2 slots: Propulsion x2 979 | -9/Materials | Discovered new exit (range 16) 997 | -9/Materials | Identified exit to Mines 1094 | -9/Materials | Destroyed 10 combat bots 1104 | -9/Materials | Lost 3 parts (1p1n1w) 1285 | -9/Materials | Core integrity fell below 50% 1299 | -9/Materials | Self-destructed Last Messages --------------- K-01 Serf collects debris. U-05 Engineer lays Concrete. U-05 Engineer builds a Wall. T-07 Excavator is excavating. U-05 Engineer lays Concrete. T-07 Excavator is excavating. U-05 Engineer lays Concrete. A-02 Transporter sends out distress signal. T-07 Excavator is excavating. EM Shotgun destroyed. U-05 Engineer builds a Door. T-07 Excavator is excavating. Chain reaction triggered in Imp. Ion Engine. Destroyed Welding Torch. T-07 Excavator is excavating. Critical hit (Burn: +37). K-01 Serf collects debris. U-05 Engineer builds a Door. T-07 Excavator is excavating. K-01 Serf collects debris. Map ----- +----------------------------------------------------+ | #### #?????????#^ ##### # #??????? | | # #?????????+^ #???# # #??????? | | " # #?????????# ^ ##+#####?# ######??????? | | " # #?????????# ^ # #?# #???????????? | | " !# #?????????# [^ # !!! #?# #???????????? | | " # ###########[%^^ # !!! / #???????????? | | # ##"""""""##^ [[ # !!! ### #???????????? | | # ##" !"| "##^ # #?# #???????????? | | #### ##" "## [ # #?# #???????????? | | % ########?? ????????????? | | > #????????? ????????????? | | #????????? ????????????? | | #+####### # ## #????????? ????????????? | | ????######### ## #????????? ????????????? | | """ ??????????#! !## #????????? ????????????? | | """"" #?????????##!!!!### #????????? ????????????? | | """"" #??????????######?# ########???????????????? | | """"" #?????????????????# #???????????? | | """ #?????????????????# ########???????????????? | | ???????????????????????# #??????????????????????? | | ????????????????????????# #??????????????????????? | | ????????????????????????# #??????????????????????? | | ????????????????????????# #??????????????????????? | | ??????????????????####### ##?????????????????????? | | ?????????????????## k; ;#?????????????????????? | | ?????????? !%;@;#?????????????????????? | | ?????????? =Y ;#?????????????????????? | | ?????????? k ;+##?????????????????????? | | ???????????## ##### # ??????????????????????? | | ??????????????????## ## ??????????????????????? | | ???????????????????# ?# ??????????????????????? | | ???????????????????# ??# #??????????????????????? | | ???????????????????+ ??###??????????????????????? | | ???????????????????# ????????????????????????????? | | ???????????????????#?????????????????????????????? | | ?????????????????????????????????????????????????? | | ?????????????????????????????????????????????????? | | ?????????????????????????????????????????????????? | | ?????????????????????????????????????????????????? | | ?????????????????????????????????????????????????? | | ?????????????????????????????????????????????????? | | ?????????????????????????????????????????????????? | | ?????????????????????????????????????????????????? | | ?????????????????????????????????????????????????? | | ?????????????????????????????????????????????????? | | ?????????????????????????????????????????????????? | | ?????????????????????????????????????????????????? | | ?????????????????????????????????????????????????? | | ?????????????????????????????????????????????????? | | ?????????????????????????????????????????????????? | +----------------------------------------------------+ Best States ------------- Heat Dissipation 28 Energy Generation 10 Energy Capacity 125 Matter Stores 300 Matter Capacity 300 Sight Range 16 Robot Scan Range 14 Terrain Scan Density 10 Evasion (%) 40 Item Schematics ----------------- None Robot Schematics ------------------ None Fabricated ------------ Nothing Alien Tech Used ----------------- None Achievements -------------- None Challenges ------------ None Game ------ Seed GatlingMultitargetingPendant Manual? 0 Play Time 00:23:18 Cumulative 5.8 hours Start 2024.04.09 @ 18:51:02 End 2024.04.09 @ 19:13:10 Sessions 1 Manual Loads 0 Difficulty Rogue Special Mode None Game No. 7 Rogue 7 Adventurer 0 Explorer 0 Win Type - Total 0 Types 0/0/0/0/0/0/0/0/0 Lore% 2 Gallery% 6 Achievement% 8 Wizard Run 0 Options --------- Layout 1 ASCII 0 Keyboard 0 Movement Arrows Keybinds 0 Fullscreen 1 Font 16/SmallcapsGlow Map View 55x38 Zoom Use 0% Tactical HUD 0 Map Filters NONE Filters NONE Steam 1 RUN: 2bb5d9e4-d61a-4f09-8062-108d0c34ac90